Cogmind - Beta 13 @@@ ROGUE MODE // 2024.06.17 @ 20:45:29 Player: H3-RMN Result: Destroyed self with Grenade Launcher Performance ------------- Evolutions (0) 0 Regions Visited (2) 400 Robots Destroyed (28) 140 Value Destroyed (740) 740 Prototype IDs (3) 60 Alien Tech Used (0) 0 Bonus (0) 0 TOTAL SCORE: 1340 Bonus ------- None Cogmind --------- Core Integrity 0/250 Matter 112/300 Energy 180/200 System Corruption 1% Temperature Cool (6) Movement Treading (1160) Ox10 Location -10/Subcaves Parts ------- > --- POWER (1) -------- Subdweller Power Source > --- PROPULSION (2) --- Spiked Treads Subdweller Monowheel > --- UTILITY (2) ------ Humpback > --- WEAPON (2) ------- Subdweller Laser Grenade Launcher > --- INVENTORY (35) --- Light Treads Light Treads Spiked Treads Spiked Treads Disposable Heat Sink Medium Storage Unit Large Storage Unit Machine Analyzer Subdweller Optics Seismic Detector Scrap Shield Hacking Suite Riot Gun Medium Laser Subdweller Laser Subdweller Beam Cannon Battle Rifle Battle Rifle Subdweller Machine Gun Subdweller Machine Gun Barrage Gun Grenade Launcher Dirty Datajack (20) Dirty Datajack (20) Datajack Peak State ------------ > --- POWER ------------ Subdweller Power Source > --- PROPULSION ------- Spiked Treads Subdweller Monowheel > --- UTILITY ---------- Humpback > --- WEAPON ----------- Subdweller Laser Barrage Gun > --- INVENTORY -------- Light Treads Light Treads Light Treads Spiked Treads Spiked Treads Disposable Heat Sink Medium Storage Unit Large Storage Unit Machine Analyzer Subdweller Optics Seismic Detector Scrap Shield Hacking Suite Riot Gun Medium Laser Subdweller Laser Subdweller Beam Cannon Battle Rifle Battle Rifle Subdweller Machine Gun Subdweller Machine Gun Grenade Launcher Grenade Launcher Subdweller Shrapnel Launcher Dirty Datajack Dirty Datajack Datajack [Rating: 18] Favorites ----------- Power Light Ion Engine Engine Light Ion Engine Propulsion Light Treads Treads Light Treads Wheel Wheel Utility Light Armor Plating Device Seismic Detector Storage Large Storage Unit Protection Light Armor Plating Weapon Small Laser Energy Gun Small Laser Ballistic Gun Light Assault Rifle Ballistic Cannon Light Cannon Launcher Subdweller Shrapnel Launcher Build | -11 -10 -10 ------- Run | Yrd Mat Sub Slots Evolved . | . . . Power . | . . . Propulsion . | . . . Utility . | . . . Weapon . | . . . Parts Attached 29 | 8 9 12 Power 4 | 1 2 1 Engine 4 | 1 2 1 Core . | . . . Reactor . | . . . Propulsion 11 | 3 3 5 Treads 5 | 1 1 3 Leg . | . . . Wheel 6 | 2 2 2 Hover . | . . . Flight . | . . . Utility 7 | 2 3 2 Device 2 | 1 . 1 Storage 4 | 1 2 1 Processor . | . . . Hackware . | . . . Protection 1 | . 1 . Artifact . | . . . Weapon 7 | 2 1 4 Energy Gun 2 | 1 . 1 Energy Cannon . | . . . Ballistic Gun 2 | 1 . 1 Ballistic Cannon 1 | . 1 . Launcher 2 | . . 2 Special Weapon . | . . . Impact Weapon . | . . . Slashing Weapon . | . . . Piercing Weapon . | . . . Special Melee Weapon . | . . . Unidentified Prototypes . | . . . Parts Lost 5 | . 1 4 Power 2 | . 1 1 Propulsion 1 | . . 1 Utility 1 | . . 1 Weapon 1 | . . 1 Highest Loss Streak 3 | . 1 3 To Critical Strikes . | . . . Average Slot Usage (%) 92 | . 99 84 Engine 10 | . 13 7 Treads 17 | . 14 21 Wheel 10 | . 14 6 Device 4 | . 4 5 Storage 14 | . 14 14 Protection 5 | . 9 1 Energy Gun 14 | . 14 14 Ballistic Gun 6 | . 6 6 Ballistic Cannon 6 | . 7 6 Naked Turns . | . . . Heaviest Build 217 | 11 30 217 Greatest Support 40 | 26 20 40 Greatest Overweight (x) 10 | . 2 10 Average Overweight (x) 2 | . 1 4 Largest Inventory Capacity 35 | 8 15 35 Average Capacity 17 | 7 10 25 Most Carried 29 | 7 11 29 Average Carried 12 | 3 8 18 Final Capacity 35 | 8 15 35 Final Carried 26 | 7 10 26 Class Distribution -------------------- 75% | Mutant 24% | Hauler-Mutant Dominant Class ---------------- Mutant | -10/Materials Hauler-Mutant | -10/Subcaves Resources | -11 -10 -10 ----------- Run | Yrd Mat Sub Matter Collected 708 | 289 229 190 Remotely . | . . . Salvage Created 822 | 70 531 221 Parts 53 | 7 30 16 Haulers Intercepted 1 | . 1 . Recyclers Shooed 1 | . 1 . Parts Field Recycled . | . . . Retrieved Matter . | . . . Parts Self-Destructed 9 | . . 9 Prevented . | . . . Kills | -11 -10 -10 ------- Run | Yrd Mat Sub Combat Hostiles Destroyed 20 | . 13 7 Guns 14 | . 10 4 Cannons 5 | . 3 2 AOE 1 | . . 1 Classes Destroyed 8 | 2 5 1 Worker 2 | 2 . . Tunneler 2 | 2 . . Hauler 1 | . 1 . Mechanic 1 | . 1 . Operator 2 | . 2 . Swarmer 3 | . 3 . Grunt 12 | . 10 2 Subdweller 5 | . . 5 Best Kill Streak 4 | 3 4 2 Combat Bots Only 3 | . 3 2 Max Kills in Single Turn 1 | 1 1 1 Gunslinging . | . . . Exploded 1 | . . 1 Melee . | . . . Uniques/NPCs Destroyed . | . . . Combat | -11 -10 -10 -------- Run | Yrd Mat Sub Hostile Shots Fired 130 | . 70 60 Missed 34 | . 22 12 Damage Taken 1577 | . 531 1046 Core 256 | . 95 161 Absorbed by Shields . | . . . Core Remaining (%) 100 | 100 . . Volleys Fired 132 | 9 65 58 Largest 2 | 2 2 2 Hottest 95 | 60 75 95 Shots Fired 225 | 18 128 79 Gun 176 | 18 106 52 Cannon 41 | . 22 19 Launcher 8 | . . 8 Special . | . . . Kinetic 111 | 9 65 37 Thermal 113 | 9 63 41 Explosive 1 | . . 1 Electromagnetic . | . . . Robot Hit Streak 14 | 4 9 14 Robot Miss Streak 3 | 2 3 2 Penetration Max . | . . . Secondary Targets 1 | . 1 . Max Gunslinging Chain 1 | . 1 . Shots Hit Robots 136 | 9 80 47 Core Hits 56 | 5 34 17 Critical Kills . | . . . Critical Parts Destroyed . | . . . Critical Strikes 1 | . . 1 Destroy 1 | . . 1 Melee Attacks . | . . . Impact . | . . . Slashing . | . . . Piercing . | . . . Sneak Attacks . | . . . Combat Hostiles . | . . . Follow-up Attacks . | . . . Damage Inflicted 2106 | 86 883 1137 Guns 1214 | 86 683 445 Cannons 431 | . 200 231 Explosions 461 | . . 461 Melee . | . . . Ramming . | . . . Kinetic 1150 | 29 414 707 Thermal 838 | 57 469 312 Explosive 118 | . . 118 Electromagnetic . | . . . Impact . | . . . Slashing . | . . . Piercing . | . . . Highest Corruption 1 | . 1 1 Average Corruption 1 | . 1 1 Corruption Purged . | . . . Corruption Blocked . | . . . Effects 7 | . 4 3 Matter Fused 3 | . 2 1 Heat Flow Errors 2 | . 1 1 Energy Discharges 1 | . 1 . Data Loss (minor) 1 | . . 1 Overload Shots . | . . . Overflow Damage 12 | . 12 . Projectiles 12 | . 12 . Explosions . | . . . Melee . | . . . Knockbacks 3 | . . 3 Impact . | . . . Kinetic 3 | . . 3 Secondary . | . . . Self-Inflicted Damage 16 | . . 16 Shots 2 | . . 2 Rammed . | . . . Targets Rammed . | . . . Kicked . | . . . Crushed . | . . . Highest Temperature 210 | 40 210 149 Average Temperature 59 | 21 64 27 Received Heat Transfer 537 | . 258 279 Siege Activations . | . . . Robots Corrupted . | . . . Combat Hostiles . | . . . Parts Fried . | . . . Impact Corruptions . | . . . Robots Melted . | . . . Combat Hostiles . | . . . Parts Melted 3 | 1 . 2 Heat Transferred 1650 | 125 1050 475 Parts Sabotaged . | . . . Parts Stolen . | . . . Parts Stripped . | . . . Power Chain Reactions . | . . . Alert | -11 -10 -10 ------- Run | Yrd Mat Sub Peak Influence 384 | 20 384 . Initial 13 | . 13 . Average 177 | 4 203 . Maximum Alert Level 1 | . 1 . Low Security (%) 58 | 100 51 . Level 1 41 | . 48 . Level 2 . | . . . Level 3 . | . . . Level 4 . | . . . Level 5 . | . . . High Security . | . . . Max Security . | . . . Squads Dispatched 3 | . 3 . Investigation 2 | . 2 . Extermination . | . . . Reinforcement 1 | . 1 . Assault . | . . . Garrison . | . . . Intercept . | . . . Searches Triggered . | . . . Construction Impeded . | . . . Haulers Reinforced . | . . . Active Scanning Responses . | . . . Cargo Convoy Interrupts . | . . . Stealth | -11 -10 -10 --------- Run | Yrd Mat Sub Distress Signals 1 | . 1 . Communications Jammed . | . . . Distress Signals . | . . . Times Spotted 34 | . 24 10 Peak Tracking Total 5 | . 5 3 Tactical Retreats 1 | . 1 . Traps | -11 -10 -10 ------- Run | Yrd Mat Sub Traps Triggered . | . . . Indirectly . | . . . Trap Hack Attempts . | . . . Triggered . | . . . Disarmed . | . . . Reprogrammed . | . . . Reused . | . . . Traps Extracted . | . . . Installed . | . . . Triggered . | . . . Machines | -11 -10 -10 ---------- Run | Yrd Mat Sub Machines Disabled . | . . . Max in Single Turn . | . . . Machines Repaired . | . . . Machines Dismantled . | . . . Machines Sabotaged . | . . . Overloaded Fab Kills . | . . . Hacking | -11 -10 -10 --------- Run | Yrd Mat Sub Machines Accessed 7 | . 6 1 Terminals 5 | . 5 . Fabricators . | . . . Repair Stations 1 | . 1 . Recycling Units . | . . . Scanalyzers . | . . . Garrison Access . | . . . Total Hacks 18 | . 14 4 Successful 9 | . 5 4 Failed 9 | . 9 . Catastrophic 3 | . 3 . Database Lockouts . | . . . Manual 7 | . 7 . Terminals 12 | . 12 . Fabricators . | . . . Repair Stations 2 | . 2 . Recycling Units . | . . . Scanalyzers . | . . . Garrison Access . | . . . Terminal Hacks 8 | . 4 4 Record 4 | . . 4 Part Schematic 1 | . 1 . Robot Analysis 1 | . 1 . Prototype ID Bank 1 | . 1 . Locate Traps 1 | . 1 . Fabricator Hacks . | . . . Repair Station Hacks . | . . . Recycling Unit Hacks . | . . . Scanalyzer . | . . . Garrison Access Hacks . | . . . Unauthorized Hacks 1 | . 1 . Terminals 1 | . 1 . Botnet 1 | . 1 . Fabricators . | . . . Repair Stations . | . . . Recycling Units . | . . . Scanalyzers . | . . . Garrison Access . | . . . Data Cores Recovered 1 | . 1 . Used 1 | . 1 . Hacking Detections 6 | . 6 . Full Trace Events 2 | . 2 . Feedback Events 1 | . 1 . Corruption 1 | . 1 . Feedback Blocked . | . . . Robot Schematics Acquired . | . . . Robots Built . | . . . Authchips . | . . . Time . | . . . Total Robot Build Rating . | . . . Part Schematics Acquired 1 | . 1 . Parts Built . | . . . Authchips . | . . . Time . | . . . Total Part Build Rating . | . . . Parts Repaired . | . . . Time . | . . . Parts Recycled . | . . . Recycled Matter . | . . . Retrieved Matter . | . . . Retrieved Components . | . . . Parts Scanalyzed . | . . . Part Schematics Acquired . | . . . Parts Damaged . | . . . Bothacking | -11 -10 -10 ------------ Run | Yrd Mat Sub Used RIF Installer . | . . . Robots Hacked . | . . . Non-combat . | . . . Combat . | . . . Robot Hacks Applied . | . . . Relay Couplers Released . | . . . Fabnet Peak Effective % . | . . . Robots Rewired . | . . . Allies Hacked . | . . . Hacks Repelled . | . . . Allies | -11 -10 -10 -------- Run | Yrd Mat Sub Total Allies . | . . . Largest Group . | . . . Highest-Rated Group . | . . . Highest-Rated Ally . | . . . Total Orders . | . . . Ally Attacks . | . . . Total Damage . | . . . Kills . | . . . Allies Corrupted . | . . . Allies Melted . | . . . Intel | -11 -10 -10 ------- Run | Yrd Mat Sub Robot Analysis Total 1 | . 1 . Derelict Logs Recovered 2 | . . 2 Drone Launches . | . . . Drone Recoveries . | . . . Exploration | -11 -10 -10 ------------- Run | Yrd Mat Sub Turns Passed 1819 | 125 820 874 Spaces Moved 907 | 55 517 335 Core 3 | 3 . . Treads 291 | 42 101 148 Legs . | . . . Wheels 613 | 10 416 187 Hover . | . . . Flight . | . . . Fastest Speed 50 | 50 95 110 Average Speed 142 | 141 111 190 Slowest Speed 610 | 160 160 610 Overloaded Moves . | . . . Propulsion Burnouts . | . . . Robots Hopped . | . . . Cave-ins Triggered . | . . . Exploration Rate (%) 37 | 4 76 31 Regions Visited 2 Branch Regions 1 Pre-discovered Areas . | . . . Known Exits Taken . | . . . Unknown Exits Taken 2 | 1 1 . Scrap Searched 6 | . . 6 Spaces Dug . | . . . Terrain Destroyed 31 | . . 31 Melee . | . . . Projectile . | . . . AOE 31 | . . 31 Terrain Rammed . | . . . Walls Destroyed . | . . . Machines Disabled . | . . . Actions | -11 -10 -10 --------- Run | Yrd Mat Sub Total 1221 | 82 645 494 Wait 88 | 3 35 50 Move 905 | 54 516 335 Hop . | . . . Pick Up 48 | 8 9 31 Fast Attach 11 | 6 2 3 Attach 9 | 1 2 6 Detach 2 | . 2 . Swap 9 | 1 5 3 Drop 17 | . 9 8 Fire 132 | 9 65 58 Melee . | . . . Ram . | . . . Kick . | . . . Crush . | . . . Escape Stasis . | . . . Rewire . | . . . Trap . | . . . Miscellaneous . | . . . Route ------- -11/Scrapyard -10/Materials (discovered 4 exits: [*Mat x2] / [*Min] / *Sub) -10/Subcaves History --------- Turn | Location | Event 15 | -11/Scrapyard | Discovered new exit (range 16) 126 | -11/Scrapyard | Entered Materials 313 | -10/Materials | Build established: Mutant 596 | -10/Materials | Discovered new exit (range 10) 632 | -10/Materials | Discovered new exit (range 9) 685 | -10/Materials | Discovered new exit (range 15) 906 | -10/Materials | Discovered new exit (range 8) 946 | -10/Materials | Entered Subcaves 957 | -10/Subcaves | Shifting Twisted Machinery released Barrage Gun 958 | -10/Subcaves | Shifting Twisted Machinery released Sub. Optics 1006 | -10/Subcaves | Learned location of 1 exit from Materials 1018 | -10/Subcaves | Learned Materials trap positions 1027 | -10/Subcaves | Shifting Twisted Machinery released Sub. Monowheel 1102 | -10/Subcaves | Lost 3 parts (1p1n1u) 1199 | -10/Subcaves | Visited Clippyterm 1236 | -10/Subcaves | A swath of the cavern ceiling suddenly collapsed 1255 | -10/Subcaves | Shifting Twisted Machinery released Spk. Treads 1278 | -10/Subcaves | Shifting Twisted Machinery released Mak. Laser 1282 | -10/Subcaves | A swath of the cavern ceiling suddenly collapsed 1341 | -10/Subcaves | Disturbed a concealed Subdweller 1355 | -10/Subcaves | Core integrity fell below 50% 1660 | -10/Subcaves | Build established: Hauler-Mutant 1700 | -10/Subcaves | Core integrity fell below 20% 1816 | -10/Subcaves | A Subdweller sparked back to life 1816 | -10/Subcaves | A Subdweller sparked back to life 1816 | -10/Subcaves | A Subdweller sparked back to life 1820 | -10/Subcaves | Destroyed self with Grenade Launcher Last Messages --------------- 01691_ K4-4AF(R) suffers critical hit (Destroy). 01700_ K4-4AF(R) destroyed. 01709_ Acquired 24 matter. 01710_ Subatomizers dissect the Sub. Monowheel. 01721_ Subatomizers dissect the Disposable Heat Sink. 01721_ Dropped Lgt. Treads. 01722_ Acquired Sub. Monowheel. 01742_ System corrupted: Matter fused (-8). 01758_ Destroyed Scrap Shield. 01760_ F1-GGS(R) destroyed. 01816_ 79-Z1M(R) creaks and sparks as it begins to move. 01816_ H4-H58(R) creaks and sparks as it begins to move. 01816_ XI-9N1(R) creaks and sparks as it begins to move. 01816_ Sub. Shrapnel Launcher shoots sparks and powers down. 01818_ Dropped Broken Sub. Shrapnel Launcher. Map ----- +----------------------------------------------------+ | ?????????????????????????????????????????????????? | | ?????????????????????????????????????????????????? | | ?????????????????????????????????????????????????? | | ?????????????????????????????????????????????????? | | ?????????????????????????????????????????????????? | | ?????????????????????????????????????????????????? | | ?????????????????????????????????????????????????? | | ?????????????????????????????????????????????????? | | ?????????????????????????????????????????????????? | | ?????????????????????????????????????????????????? | | ?????????????????????????????????????????????????? | | ?????????????????????????????????????????????????? | | ?????????????????????????????????????????????????? | | ??????????????????????????? ????????????????????? | | ??????????????????????????? ????????????????????? | | ??????????????????????????? #???????????????????? | | ????????????????###???????? #????#??????????????? | | ????????????????# ###????? #??? ###????????????? | | ????????????????# ##### ##? ##???????????? | | ?????????????????# # ## #???????????? | | ??????????????????# < # #????????????? | | ???????????????????# &< R #?????????????? | | ????????????????????# < #??????????????? | | ????????????????????# < R #???????????????? | | ?????????????????????# R #????????????????? | | ???????????????????????# @ ?????????????????? | | ???????????????????????## #?????????????????? | | ???????????????????????## ## #?????????????????? | | ???????????????????????# #??#?????????????????? | | ???????????????????????## ##????????????????????? | | ??????????????????????### ##?#####?????????????? | | ??????????????????????# ### #?????????????? | | ???????????????????####" #??????????????? | | ???????????????????#"""" #??????????????? | | ??????????????????##" #??????????????? | | ??????????????????# ##?????????????? | | ?????????????????## ## ##????????????? | | ????????????????# ### #????????????? | | ???????????????# # ## ##????????????? | | ??????????????? & # #?????????????? | | ??????????????? # #?????????????? | | ??????????????? " ####?????????????? | | ??????????????? "" ##???????????????? | | ??????????????? ###?????????????? | | ???????????????? ##### ##????????????? | | ???????????????????### #????????????? | | ???????????????????# "" ##????????????? | | ??????????????????# " #?????????????? | | ???????????????# "" """" #?????????????? | | ???????????????? " """ " ##????????????? | +----------------------------------------------------+ Best States ------------- Heat Dissipation 25 Energy Generation 10 Energy Capacity 200 Matter Stores 300 Matter Capacity 300 Sight Range 16 Terrain Scan Density 10 Armor Coverage 150 Evasion (%) 42 Recoil Reduction 2 Item Schematics ----------------- Hcp. Storage Unit | -10/Materials | Hacked Robot Schematics ------------------ None Fabricated ------------ Nothing Alien Tech Used ----------------- None Achievements -------------- None Challenges ------------ None Game ------ Seed EtherialRemotePropulsion Manual? 0 Play Time 00:16:46 Cumulative 427.5 hours Start 2024.06.17 @ 20:07:30 End 2024.06.17 @ 20:45:29 Sessions 1 Manual Loads 0 Difficulty Rogue Special Mode None Game No. 167 Rogue 164 Adventurer 3 Explorer 0 Win Type - Total 7 Types 4/1/0/1/0/1/0/0/0 Lore% 80 Gallery% 85 Achievement% 86 Wizard Run 0 Options --------- Layout 2 ASCII 0 Keyboard 0 Movement Numpad Keybinds 0 Fullscreen 2 Font 24/Smallcaps Map View 50x44 Zoom Use 0% Tactical HUD 1 Map Filters NONE Filters NONE Steam 1 RUN: d82607d1-43d3-491b-91c9-31ef0469de54